bitfinex/quotes_BTCUSD_20240715
["timestamp","ask_amount","ask_price","bid_price","bid_amount"]
[1721052279519,0.498336,63113.0,63112.0,0.09042626]
[1721052279917,0.815227,63113.0,63112.0,0.09042626]
[1721052280589,0.475344,63112.0,63111.0,0.09042626]
[1721052280805,0.81524,63112.0,63111.0,0.09042626]
[1721052281034,0.158453,63110.0,63109.0,0.09042626]
[1721052281369,0.498359,63110.0,63109.0,0.09042626]
[1721052282580,0.498359,63110.0,63105.0,0.2664]
[1721052282581,0.475368,63109.0,63108.0,0.09042626]
[1721052282780,0.158461,63107.0,63106.0,0.09042626]
[1721052283058,0.181461,63107.0,63105.0,0.0664]
[1721052283351,0.158463,63106.0,63105.0,0.0664]
[1721052283909,0.47539,63106.0,63105.0,0.0664]
[1721052284114,0.49839,63106.0,63105.0,0.0664]
[1721052284754,0.49839,63106.0,63105.0,0.0724]
[1721052284958,0.49839,63106.0,63105.0,0.0694]
[1721052285484,0.49839,63106.0,63105.0,0.0664]
[1721052285684,0.49839,63106.0,63105.0,0.15682626]
[1721052286237,0.023,63106.0,63105.0,0.35682626]
[1721052286435,0.316918,63108.0,63107.0,0.09042626]
[1721052286436,0.158458,63108.0,63107.0,0.09042626]
[1721052286640,0.181458,63108.0,63107.0,0.09042626]
[1721052287328,0.023,63108.0,63107.0,0.09042626]
[1721052287529,0.181458,63108.0,63107.0,0.09042626]
[1721052288070,0.182458,63108.0,63107.0,0.09042626]
[1721052288285,0.181458,63108.0,63107.0,0.09042626]
[1721052288453,0.181458,63108.0,63107.0,0.29042626]
[1721052288454,0.182458,63108.0,63107.0,0.29042626]
[1721052288655,0.024,63108.0,63107.0,0.29042626]
[1721052288976,0.001,63108.0,63107.0,0.88580926]
[1721052289538,0.001,63108.0,63107.0,1.34633126]
[1721052289737,0.0027617,63121.0,63107.0,1.34633126]
[1721052289738,0.158415,63125.0,63121.0,0.2648]
[1721052289940,0.158415,63125.0,63121.0,0.0648]
[1721052290346,0.04726932,63130.0,63129.0,0.09042626]
[1721052291010,0.04726932,63130.0,63129.0,0.94874226]
[1721052291306,0.04726932,63130.0,63129.0,0.82874226]
[1721052291525,0.04726932,63130.0,63129.0,0.94874226]
[1721052291730,0.05026932,63130.0,63129.0,1.34895326]
[1721052291948,0.05026932,63130.0,63129.0,1.66576426]
[1721052292156,0.003,63130.0,63129.0,1.34895326]
[1721052292369,0.006,63130.0,63129.0,1.34995326]
[1721052293237,0.006,63130.0,63129.0,1.34895326]
[1721052293449,0.003,63130.0,63129.0,1.34895326]
[1721052293652,0.158376,63141.0,63139.0,0.09042626]
[1721052293865,0.023,63140.0,63139.0,0.29042626]
[1721052294073,0.17803333,63143.0,63139.0,0.29042626]
[1721052294074,0.023,63142.0,63139.0,0.29042626]
[1721052294333,0.023,63142.0,63138.0,0.2]
[1721052294334,0.181373,63142.0,63138.0,0.2]
[1721052294546,0.023,63142.0,63139.0,0.09042626]
[1721052294763,0.01937446,63143.0,63142.0,0.09042626]
[1721052294998,0.01937446,63143.0,63142.0,0.16682626]
[1721052295419,0.01937446,63143.0,63142.0,0.09042626]
[1721052295823,0.01937446,63143.0,63140.0,0.0623]
[1721052296028,0.01937446,63143.0,63142.0,0.09042626]
[1721052296957,0.01937446,63143.0,63142.0,0.24879926]
[1721052297198,0.02237446,63143.0,63142.0,0.24879926]
[1721052297688,0.02537446,63143.0,63142.0,0.09042626]
[1721052297920,0.02237446,63143.0,63142.0,0.09042626]
[1721052298158,0.01937446,63143.0,63142.0,0.09042626]
[1721052298367,0.01937446,63143.0,63142.0,0.09142626]
[1721052298656,0.01937446,63143.0,63142.0,0.09042626]
[1721052298846,0.01937446,63143.0,63142.0,0.09242626]
[1721052299589,0.20074446,63143.0,63142.0,0.09242626]
[1721052299832,0.01937446,63143.0,63142.0,0.41242626]
[1721052300134,0.01937446,63143.0,63142.0,0.57079926]
[1721052300337,0.01937446,63143.0,63142.0,0.41242626]
[1721052300749,0.01937446,63143.0,63142.0,0.88754526]
[1721052300975,0.01937446,63143.0,63142.0,1.20529126]
[1721052301605,0.01937446,63143.0,63142.0,0.89054526]
[1721052302575,0.01937446,63143.0,63142.0,0.41542626]
[1721052302785,0.01937446,63143.0,63142.0,0.09542626]
[1721052303052,0.01937446,63143.0,63142.0,0.57379926]
[1721052303382,0.01937446,63143.0,63142.0,0.89054526]
[1721052304713,0.01937446,63143.0,63142.0,1.28259126]
[1721052305035,0.01937446,63143.0,63142.0,1.34579126]
[1721052305382,0.01937446,63143.0,63142.0,1.66253726]
[1721052307496,0.01937446,63143.0,63142.0,1.66204829]
[1721052308832,0.01937446,63143.0,63142.0,1.8241662]
[1721052309329,0.01937446,63143.0,63142.0,1.9241662]
[1721052309731,0.01937446,63143.0,63142.0,1.92265517]
[1721052310136,0.01937446,63143.0,63142.0,1.98765517]
[1721052310338,0.01937446,63143.0,63142.0,2.63630117]
[1721052310636,0.01937446,63143.0,63142.0,2.62830117]
[1721052310847,0.01937446,63143.0,63142.0,2.63330117]
[1721052311428,0.01937446,63143.0,63142.0,2.64230117]
[1721052311879,0.01937446,63143.0,63142.0,2.65630117]
[1721052312304,0.00375981,63169.0,63160.0,1.59782226]
[1721052312517,0.00375981,63169.0,63168.0,0.29042626]
[1721052312518,0.08205238,63169.0,63168.0,0.29042626]
[1721052312729,0.24035738,63169.0,63168.0,0.09042626]
[1721052312901,0.08205238,63169.0,63168.0,0.09042626]
[1721052313124,0.08205238,63169.0,63168.0,0.88535026]
[1721052313675,0.001,63169.0,63168.0,1.66018226]
[1721052313682,0.003,63169.0,63168.0,1.66018226]
[1721052314364,0.001,63169.0,63168.0,2.23891617]
[1721052314563,0.001,63169.0,63168.0,1.94430017]
[1721052314774,0.001,63169.0,63168.0,1.93330017]
[1721052315183,0.001,63169.0,63168.0,0.50133426]
[1721052315402,0.001,63169.0,63168.0,0.69033426]
[1721052315605,0.00833,63173.0,63172.0,1.02691826]
[1721052315815,0.00833,63173.0,63172.0,1.95400617]
[1721052316039,0.00833,63173.0,63172.0,2.27060117]
[1721052316259,0.00333,63173.0,63172.0,1.95400617]
[1721052316713,0.00333,63173.0,63172.0,1.79188826]
[1721052316936,0.00333,63173.0,63172.0,0.83869826]
[1721052317110,0.00333,63173.0,63172.0,0.80691826]
[1721052317339,0.00333,63173.0,63172.0,0.09042626]
[1721052317478,0.00333,63173.0,63172.0,0.014]
[1721052317479,0.583015,63173.0,63172.0,0.014]
[1721052317688,0.899605,63173.0,63172.0,0.028]
[1721052317884,1.216195,63173.0,63172.0,0.014]
[1721052318131,1.216195,63173.0,63164.0,0.09042626]
[1721052318132,0.633262,63165.0,63164.0,0.09042626]
[1721052318303,0.633262,63165.0,63163.0,0.09042626]
[1721052318304,0.23937038,63164.0,63163.0,0.09042626]
[1721052318530,0.55600638,63164.0,63163.0,0.09042626]
[1721052318726,0.23937038,63164.0,63163.0,0.09042626]
[1721052318999,0.55600638,63164.0,63163.0,0.09042626]
[1721052319582,0.00957374,63188.0,63166.0,0.09042626]
[1721052319583,0.2519,63178.0,63166.0,0.09042626]
[1721052319730,0.161626,63173.0,63166.0,0.09042626]
[1721052319928,0.161626,63173.0,63172.0,0.001]
[1721052319929,0.162626,63173.0,63172.0,0.001]
[1721052320157,0.00433,63173.0,63172.0,0.001]
[1721052320364,0.00333,63173.0,63172.0,0.09042626]
[1721052320695,0.00333,63173.0,63172.0,0.24872326]
[1721052321002,0.00333,63173.0,63172.0,0.09042626]
[1721052321206,0.161625,63173.0,63172.0,0.09348979]
[1721052321435,0.00433,63173.0,63172.0,0.09042626]
[1721052321583,0.00333,63173.0,63172.0,0.09042626]
[1721052321794,0.00333,63173.0,63172.0,0.56531826]
[1721052322199,0.00333,63173.0,63172.0,0.09042626]
[1721052322421,0.3166,63171.0,63170.0,0.09042626]
[1721052322756,0.3166,63171.0,63161.0,0.2]
[1721052322757,0.791525,63169.0,63168.0,0.09042626]
[1721052322875,0.474915,63169.0,63168.0,0.09042626]
[1721052323084,0.316631,63165.0,63164.0,0.09042626]
[1721052323289,0.316631,63165.0,63152.0,0.2]
[1721052323290,0.475014,63156.0,63155.0,0.09348979]
[1721052323507,0.475014,63156.0,63155.0,0.00306353]
[1721052323794,0.475014,63156.0,63147.0,0.0031669]
[1721052323795,0.475029,63154.0,63153.0,0.09042626]
[1721052324410,0.158358,63148.0,63147.0,0.09042626]
[1721052325094,0.475074,63148.0,63147.0,0.09042626]
[1721052325830,0.475074,63148.0,63147.0,0.09342626]
[1721052326158,0.81479,63148.0,63147.0,0.09042626]
[1721052326765,0.81479,63148.0,63147.0,0.09342626]
[1721052327495,0.81479,63148.0,63147.0,0.09642626]
[1721052328129,0.498074,63148.0,63147.0,0.09342626]
[1721052328293,0.15835,63151.0,63150.0,0.09042626]
[1721052328513,0.814752,63151.0,63150.0,0.09042626]
[1721052328721,0.814752,63151.0,63149.0,0.09042626]
[1721052328722,0.475059,63150.0,63149.0,0.09042626]
[1721052329926,0.475059,63150.0,63147.0,0.005]
[1721052329927,0.475074,63148.0,63147.0,0.09242626]
[1721052330553,0.475074,63148.0,63147.0,0.09042626]
[1721052330554,0.81479,63148.0,63147.0,0.09042626]
[1721052331017,0.158367,63145.0,63143.0,0.10222626]
[1721052331140,0.656432,63148.0,63142.0,0.00306353]
[1721052331141,0.158369,63144.0,63142.0,0.00306353]
[1721052331594,0.158369,63144.0,63141.0,0.10222626]
[1721052332009,0.158371,63143.0,63138.0,0.1]
[1721052332463,0.158371,63143.0,63140.0,0.10222626]
[1721052332663,0.158371,63143.0,63142.0,0.10822626]
[1721052332783,0.158371,63143.0,63142.0,0.006]
[1721052333230,0.158371,63143.0,63142.0,0.10822626]
[1721052333571,0.316734,63145.0,63143.0,0.10222626]
[1721052333572,0.158369,63144.0,63143.0,0.10222626]
[1721052334157,0.158369,63144.0,63141.0,0.10222626]
[1721052334785,0.158369,63144.0,63140.0,0.008]
[1721052334786,0.316642,63163.0,63149.0,0.10222626]
[1721052334993,0.316681,63155.0,63150.0,0.16322626]
[1721052335148,0.316681,63155.0,63150.0,0.061]
[1721052335149,0.023,63154.0,63150.0,0.061]
[1721052335349,0.475051,63151.0,63150.0,0.061]
[1721052335622,0.475051,63151.0,63144.0,0.061]
[1721052335623,0.158365,63145.0,63144.0,0.061]
[1721052335910,0.023,63154.0,63149.0,0.001]
[1721052336147,0.791765,63150.0,63149.0,0.001]
[1721052336341,0.814765,63150.0,63149.0,0.001]
[1721052337125,0.158369,63144.0,63141.0,0.00306353]
[1721052337370,0.316731,63145.0,63141.0,0.00306353]
[1721052337524,0.023,63150.0,63140.0,0.061]
[1721052337525,0.316723,63147.0,63140.0,0.061]
[1721052337724,0.475126,63141.0,63140.0,0.061]
[1721052338103,0.158384,63138.0,63134.0,0.16842626]
[1721052338308,0.0962,63150.0,63141.0,0.01]
[1721052338309,0.023,63149.0,63141.0,0.01]
[1721052338510,0.158373,63142.0,63141.0,0.01]
[1721052338939,0.158373,63142.0,63140.0,0.10222626]
[1721052339111,0.158375,63141.0,63140.0,0.027]
[1721052339320,0.158375,63141.0,63140.0,0.013]
[1721052339515,0.023,63149.0,63140.0,0.013]
[1721052339516,0.316718,63148.0,63142.0,0.10222626]
[1721052339723,0.158345,63153.0,63149.0,0.10222626]
[1721052340000,0.158348,63152.0,63149.0,0.10222626]
[1721052340323,0.158348,63152.0,63148.0,0.10222626]
[1721052340776,0.158348,63152.0,63146.0,0.278362]
[1721052340777,0.158348,63152.0,63147.0,0.10222626]
[1721052340955,0.316693,63153.0,63144.0,0.158366]
[1721052341160,0.316693,63153.0,63145.0,0.10528979]
[1721052341513,0.316693,63153.0,63149.0,0.10222626]
[1721052341514,0.158347,63153.0,63149.0,0.10222626]
[1721052341711,0.158351,63151.0,63147.0,0.10222626]
[1721052341911,0.158351,63151.0,63148.0,0.00306353]
[1721052342109,0.158355,63149.0,63148.0,0.00306353]
[1721052342313,0.791777,63149.0,63148.0,0.00306353]
[1721052342529,0.791777,63149.0,63138.0,0.0654]
[1721052342530,0.339711,63149.0,63138.0,0.0654]
[1721052342693,0.158374,63142.0,63138.0,0.0654]
[1721052342893,0.158374,63142.0,63138.0,0.26762626]
[1721052343114,0.316742,63143.0,63138.0,0.0654]
[1721052343473,0.316727,63146.0,63138.0,0.0654]
[1721052343725,0.15838,63139.0,63138.0,0.0654]
[1721052345257,0.158371,63143.0,63140.0,0.10222626]
[1721052345462,0.316728,63146.0,63142.0,0.22222626]
[1721052345660,0.158368,63144.0,63143.0,0.10222626]
[1721052345901,0.158371,63143.0,63141.0,0.10222626]
[1721052346108,1.108663,63139.0,63138.0,0.012]
[1721052346446,1.108663,63139.0,63120.0,0.066]
[1721052346447,0.15842,63123.0,63120.0,0.066]
[1721052346660,0.0797,63136.0,63125.0,0.316829]
[1721052346827,0.023,63138.0,63127.0,0.158409]
[1721052346828,0.316788,63134.0,63127.0,0.158409]
[1721052347036,0.316788,63134.0,63127.0,0.300109]
[1721052347240,0.158398,63132.0,63127.0,0.1417]
[1721052347731,0.316796,63133.0,63127.0,0.1417]
[1721052347732,0.158401,63131.0,63127.0,0.1417]
[1721052347967,0.158408,63128.0,63127.0,0.1417]
[1721052348325,0.001,63139.0,63127.0,0.1417]
[1721052348673,0.316805,63131.0,63127.0,0.1417]
[1721052348842,0.158406,63129.0,63127.0,0.1417]
[1721052349588,0.158406,63129.0,63127.0,0.1427]
[1721052349992,0.475208,63131.0,63127.0,0.1417]
[1721052350200,0.475208,63131.0,63127.0,0.1427]
[1721052350201,0.158404,63130.0,63127.0,0.1427]
[1721052350605,0.316783,63135.0,63129.0,0.10222626]
[1721052350820,0.08105238,63145.0,63133.0,0.26062026]
[1721052351020,0.08105238,63138.0,63129.0,0.10222626]
[1721052351480,0.158401,63131.0,63129.0,0.10222626]
[1721052351941,0.20565112,63148.0,63134.0,0.316782]
[1721052352109,0.08105238,63152.0,63144.0,0.0787]
[1721052352110,0.158349,63152.0,63144.0,0.0787]
[1721052352306,0.158355,63149.0,63145.0,0.10222626]
[1721052352508,0.31669,63154.0,63147.0,0.10222626]
[1721052352790,0.316696,63152.0,63147.0,0.10222626]
[1721052352994,0.316696,63152.0,63146.0,0.16302626]
[1721052353215,0.08105238,63156.0,63146.0,0.0608]
[1721052353216,0.15836,63147.0,63146.0,0.0608]
[1721052353811,0.316716,63148.0,63147.0,0.001]
[1721052353812,0.158358,63148.0,63147.0,0.001]
[1721052354017,0.08105238,63149.0,63147.0,0.10222626]
[1721052354018,0.23940838,63149.0,63147.0,0.10222626]
[1721052354596,0.316691,63153.0,63147.0,0.10122626]
[1721052354809,0.158353,63151.0,63147.0,0.10122626]
[1721052355144,0.158352,63151.0,63147.0,0.10122626]
[1721052355386,0.001,63149.0,63147.0,0.10122626]
[1721052355825,0.24040738,63149.0,63146.0,0.0608]
[1721052355999,0.23940738,63149.0,63146.0,0.0608]
[1721052356204,0.23940738,63149.0,63147.0,0.002]
[1721052356403,0.23940738,63149.0,63147.0,0.001]
[1721052357134,0.23940738,63149.0,63146.0,0.0618]
[1721052357339,0.23940738,63149.0,63146.0,0.0628]
[1721052357689,0.23940738,63149.0,63146.0,0.0618]
[1721052358041,0.08105238,63149.0,63147.0,0.10122626]
[1721052358600,0.316691,63153.0,63147.0,0.25958526]
[1721052358601,0.158347,63153.0,63147.0,0.25958526]
[1721052358853,0.316687,63154.0,63147.0,0.26058526]
[1721052358854,0.001,63149.0,63147.0,0.26058526]
[1721052359121,0.001,63149.0,63147.0,0.002]
[1721052359295,0.001,63149.0,63147.0,0.10322626]
[1721052359501,0.87284238,63148.0,63147.0,0.002]
[1721052359721,0.87284238,63148.0,63147.0,0.001]
[1721052359917,0.89584238,63148.0,63147.0,0.002]
[1721052360124,1.21255838,63148.0,63147.0,0.002]
[1721052360326,1.21531644,63148.0,63147.0,0.001]
[1721052360724,1.21531644,63148.0,63147.0,0.002]
[1721052361404,1.21531644,63148.0,63147.0,0.001]
[1721052361769,1.21631644,63148.0,63147.0,0.002]
[1721052363455,1.26367398,63148.0,63147.0,0.002]
[1721052363656,1.77916372,63148.0,63147.0,0.002]
[1721052363900,1.83988295,63148.0,63147.0,0.002]
[1721052364057,1.93988295,63148.0,63147.0,0.002]
[1721052364843,2.08197857,63148.0,63147.0,0.002]
[1721052365236,1.84116554,63148.0,63147.0,0.002]
[1721052365632,1.93993928,63148.0,63147.0,0.002]
[1721052365855,1.98177131,63148.0,63147.0,0.002]
[1721052366064,1.95993928,63148.0,63147.0,0.002]
[1721052366488,2.10203576,63148.0,63147.0,0.002]
[1721052367385,2.41881593,63148.0,63147.0,0.002]
[1721052367596,1.86116554,63148.0,63147.0,0.002]
[1721052367756,1.95993928,63148.0,63147.0,0.002]
[1721052367958,2.10209955,63148.0,63147.0,0.002]
[1721052368172,1.95993928,63148.0,63147.0,0.002]
[1721052368391,2.30162643,63148.0,63147.0,0.002]
[1721052368591,2.32757777,63148.0,63147.0,0.002]
[1721052368845,2.59457777,63148.0,63147.0,1e-06]
[1721052369045,2.59457777,63148.0,63127.0,0.000913]
[1721052369046,1.108856,63128.0,63127.0,0.000913]
[1721052369245,1.17997378,63128.0,63127.0,0.000913]
[1721052369445,1.17998268,63128.0,63127.0,0.000913]
[1721052369618,1.20298104,63128.0,63127.0,0.000913]
[1721052369830,1.131856,63128.0,63127.0,0.000913]
[1721052372152,0.81504,63128.0,63127.0,0.000913]
[1721052373117,0.81504,63128.0,63127.0,0.001913]
[1721052374580,0.81504,63128.0,63109.0,0.10122626]
[1721052374581,0.17657374,63114.0,63106.0,0.0666]
[1721052374872,0.1,63106.0,63099.0,0.00306353]
[1721052375092,0.1,63106.0,63096.0,0.0666]
[1721052375093,0.2317,63102.0,63096.0,0.0666]
[1721052375427,0.023,63101.0,63096.0,0.0666]
[1721052376094,0.023,63101.0,63091.0,0.0777]
[1721052376095,0.023,63101.0,63091.0,0.1431]
[1721052376271,0.08105238,63099.0,63096.0,0.002]
[1721052376490,0.2317,63097.0,63096.0,0.002]
[1721052376690,0.3317,63097.0,63096.0,0.001]
[1721052376891,0.1,63096.0,63086.0,0.10122626]
[1721052377436,0.023,63095.0,63086.0,0.10122626]
[1721052377845,0.08064737,63095.0,63086.0,0.10122626]
[1721052377985,0.023,63095.0,63086.0,0.10122626]
[1721052378398,0.023,63095.0,63081.0,0.0756]
[1721052378399,0.12177374,63095.0,63081.0,0.0756]
[1721052378595,0.09877374,63094.0,63081.0,0.0756]
[1721052378810,0.023,63093.0,63081.0,0.0756]
[1721052379044,0.023,63095.0,63081.0,0.0756]
[1721052379876,0.023,63095.0,63075.0,0.009163]
[1721052379877,0.1,63084.0,63075.0,0.009163]
[1721052380088,0.123,63084.0,63083.0,0.010174]
[1721052380342,0.1985,63084.0,63083.0,0.010174]
[1721052380535,0.1985,63084.0,63083.0,0.009174]
[1721052380536,0.30126114,63084.0,63083.0,0.009174]
[1721052380934,0.30126114,63084.0,63083.0,0.010174]
[1721052381136,0.22576114,63084.0,63083.0,0.015174]
[1721052381345,0.12576114,63084.0,63083.0,0.015174]
[1721052381585,0.02576114,63084.0,63083.0,0.015174]
[1721052381799,0.02576114,63084.0,63083.0,0.075474]
[1721052382137,0.02576114,63084.0,63083.0,0.014174]
[1721052382542,0.02576114,63084.0,63083.0,0.015174]
[1721052382543,0.03876114,63084.0,63083.0,0.015174]
[1721052382949,0.02576114,63084.0,63083.0,0.009174]
[1721052383154,0.00276114,63084.0,63083.0,0.009174]
[1721052383518,0.02176114,63084.0,63083.0,0.010174]
[1721052383713,0.03176114,63084.0,63083.0,0.010174]
[1721052383962,0.03576114,63084.0,63083.0,0.010174]
[1721052386572,0.23453488,63084.0,63083.0,0.010174]
[1721052386889,0.43453488,63084.0,63083.0,0.010174]
[1721052387040,0.70393488,63084.0,63083.0,0.010174]
[1721052387242,0.79231041,63084.0,63083.0,0.01011155]
[1721052387445,0.67741802,63084.0,63083.0,0.01011155]
[1721052387648,0.84041802,63084.0,63083.0,0.01011155]
[1721052388074,0.85441802,63084.0,63083.0,0.01011155]
[1721052388274,1.13531041,63084.0,63083.0,0.01011155]
[1721052388450,1.13531041,63084.0,63083.0,0.00911155]
[1721052388451,1.03053667,63084.0,63083.0,0.00911155]
[1721052388654,0.53053667,63084.0,63083.0,0.00911155]
[1721052388852,1.35730323,63084.0,63083.0,0.00911155]
[1721052389293,1.29631041,63084.0,63083.0,0.00911155]
[1721052389517,0.61531041,63084.0,63083.0,0.00911155]
[1721052389717,1.12931041,63084.0,63083.0,0.00911155]
[1721052389929,1.14331041,63084.0,63083.0,0.00911155]
[1721052390555,0.64331041,63084.0,63083.0,0.00911155]
[1721052390784,1.14331041,63084.0,63083.0,0.00911155]
[1721052391314,1.15248441,63084.0,63083.0,0.00911155]
[1721052391956,1.06577374,63076.0,63075.0,0.009163]
[1721052392161,1.06577374,63076.0,63074.0,0.009174]
[1721052392162,0.46577374,63075.0,63074.0,0.009174]
[1721052392359,0.46577374,63075.0,63071.0,0.001]
[1721052392360,0.29877374,63072.0,63071.0,0.001]
[1721052392584,0.49644494,63072.0,63071.0,0.001]
[1721052393003,0.49521413,63072.0,63071.0,0.001]
[1721052393201,0.47088075,63072.0,63071.0,0.001]
[1721052393428,0.42177374,63072.0,63071.0,0.001]
[1721052394185,0.58877374,63072.0,63071.0,0.001]
[1721052394425,0.60277374,63072.0,63071.0,0.001]
[1721052394811,0.43577374,63072.0,63071.0,0.001]
[1721052394989,0.93577374,63072.0,63071.0,0.001]
[1721052395773,1.03187374,63072.0,63071.0,0.001]
[1721052396538,1.18487374,63072.0,63071.0,0.001]
[1721052396703,1.19887374,63072.0,63071.0,0.001]
[1721052396928,1.21287374,63072.0,63071.0,0.001]
[1721052397764,1.1141,63072.0,63071.0,0.001]
[1721052397905,1.1141,63072.0,63063.0,0.009074]
[1721052397906,0.79877374,63064.0,63063.0,0.009074]
[1721052398107,0.37214039,63064.0,63063.0,0.008574]
[1721052398304,0.60380701,63064.0,63063.0,0.008574]
[1721052398524,0.5547,63064.0,63063.0,0.008574]
[1721052398894,0.5547,63064.0,63063.0,0.008074]
[1721052399513,0.5547,63064.0,63063.0,0.007974]
[1721052399702,0.5687,63064.0,63063.0,0.007974]
[1721052400128,0.60203338,63064.0,63063.0,0.007974]
[1721052400337,0.5827,63064.0,63063.0,0.007974]
[1721052400794,0.47146228,63064.0,63063.0,0.007974]
[1721052401065,0.33976228,63064.0,63063.0,0.007874]
[1721052401702,0.55746228,63064.0,63063.0,0.007874]
[1721052401872,0.55746228,63064.0,63063.0,0.007774]
[1721052402084,0.57146228,63064.0,63063.0,0.007774]
[1721052402287,0.58546228,63064.0,63063.0,0.007774]
[1721052402416,0.57146228,63064.0,63063.0,0.007774]
[1721052402625,0.65623602,63064.0,63063.0,0.007774]
[1721052403030,0.67023602,63064.0,63063.0,0.007774]
[1721052403455,0.58423602,63064.0,63063.0,0.007774]
[1721052403828,0.58546228,63064.0,63063.0,0.007774]
[1721052403964,0.57146228,63064.0,63063.0,0.007774]
[1721052404387,0.01676228,63064.0,63063.0,0.72681426]
[1721052404597,0.01676228,63064.0,63063.0,0.37110026]
[1721052404797,0.01676228,63064.0,63063.0,0.52967126]
[1721052404798,0.00276228,63064.0,63063.0,0.52967126]
[1721052405173,0.21277374,63080.0,63069.0,0.08722626]
[1721052405383,0.21277374,63080.0,63063.0,0.324917]
[1721052405384,0.00276138,63074.0,63073.0,0.20722626]
[1721052405583,0.00276138,63074.0,63073.0,1.12505626]
[1721052405731,0.1,63089.0,63079.0,0.1391]
[1721052405732,0.1,63088.0,63079.0,0.1391]
[1721052405936,0.00276082,63082.0,63079.0,0.1391]
[1721052406278,0.00276082,63082.0,63081.0,0.19322626]
[1721052406604,0.00276082,63082.0,63079.0,0.05312852]
[1721052407044,0.00276082,63082.0,63079.0,0.14035478]
[1721052407253,0.00276082,63082.0,63079.0,0.05312852]
[1721052408396,0.00276082,63082.0,63064.0,0.317137]
[1721052408397,0.1,63074.0,63052.0,0.32636]
[1721052408600,0.6,63078.0,63052.0,0.32636]
[1721052408601,0.1,63070.0,63055.0,0.08722626]
[1721052408773,0.1,63070.0,63058.0,0.08722626]
[1721052408987,0.023,63069.0,63058.0,0.08722626]
[1721052409189,0.023,63069.0,63061.0,0.070152]
[1721052409396,0.1,63064.0,63061.0,0.009152]
[1721052409553,0.3317,63064.0,63061.0,0.009152]
[1721052409758,0.3547,63064.0,63061.0,0.009152]
[1721052409967,0.3547,63064.0,63063.0,0.011774]
[1721052409968,0.2547,63064.0,63063.0,0.011774]
[1721052410170,0.2547,63064.0,63063.0,0.007774]
[1721052410171,0.023,63064.0,63063.0,0.007774]
[1721052410380,0.475707,63064.0,63063.0,0.007774]
[1721052410590,0.498707,63064.0,63063.0,0.008774]
[1721052410790,0.815845,63064.0,63063.0,0.008774]
[1721052410998,1.232983,63064.0,63063.0,0.008774]
[1721052411572,1.67745674,63064.0,63063.0,0.008774]
[1721052411914,1.67745674,63064.0,63063.0,0.007774]
[1721052412121,1.73835674,63064.0,63063.0,0.007774]
[1721052412318,2.06549474,63064.0,63063.0,0.008774]
[1721052412523,2.06549474,63064.0,63063.0,0.011774]
[1721052412727,1.05549474,63064.0,63063.0,0.010774]
[1721052412926,1.05549474,63064.0,63063.0,0.007774]
[1721052413130,1.05949474,63064.0,63063.0,0.007774]
[1721052413350,1.69377074,63064.0,63063.0,0.007774]
[1721052413551,1.70377074,63064.0,63063.0,0.008774]
[1721052413871,1.69377074,63064.0,63063.0,0.007774]
[1721052414979,1.71277074,63064.0,63063.0,0.007774]
[1721052415180,1.72577074,63064.0,63063.0,0.007774]
[1721052415431,1.73877074,63064.0,63063.0,0.007774]
[1721052415802,1.72577074,63064.0,63063.0,0.007774]
[1721052416008,2.075097,63064.0,63063.0,0.007774]
[1721052416307,1.233959,63064.0,63063.0,0.007774]
[1721052416508,1.34673274,63064.0,63063.0,0.007774]
[1721052416646,1.246959,63064.0,63063.0,0.007774]
[1721052416847,1.75600303,63064.0,63063.0,0.007774]
[1721052417052,2.30424103,63064.0,63063.0,0.007774]
[1721052417253,2.04034938,63064.0,63063.0,0.007774]
[1721052417483,2.36737238,63064.0,63063.0,0.007774]
[1721052417878,2.48014612,63064.0,63063.0,0.007774]
[1721052418642,0.81277374,63053.0,63052.0,0.009163]
[1721052418849,0.81277374,63053.0,63045.0,0.009152]
[1721052418851,0.95558574,63050.0,63045.0,0.009152]
[1721052419054,2.01709634,63050.0,63045.0,0.009152]
[1721052419331,2.12985916,63050.0,63045.0,0.009152]
[1721052419482,2.44706716,63050.0,63045.0,0.009152]
[1721052420072,2.44706772,63050.0,63045.0,0.009152]
[1721052420273,2.45706772,63050.0,63045.0,0.009152]
[1721052420553,2.44706772,63050.0,63045.0,0.009152]
[1721052420710,2.33429398,63050.0,63045.0,0.009152]
[1721052420908,2.44706772,63050.0,63045.0,0.009152]
[1721052421142,2.44706755,63050.0,63045.0,0.009152]
[1721052421295,2.44700029,63050.0,63045.0,0.009152]
[1721052421500,2.44700029,63050.0,63026.0,0.1382]
[1721052421501,2.72451548,63044.0,63026.0,0.1382]
[1721052421685,2.72002986,63044.0,63026.0,0.1382]
[1721052421888,2.70213687,63044.0,63026.0,0.1382]
[1721052422085,2.70213687,63044.0,63023.0,0.08722626]
[1721052422086,1.55479582,63044.0,63039.0,0.0631]
[1721052422296,1.565033,63044.0,63039.0,0.0631]
[1721052422510,1.247795,63044.0,63039.0,0.0631]
[1721052422932,1.147795,63044.0,63039.0,0.0631]
[1721052423144,1.161795,63044.0,63039.0,0.0631]
[1721052423344,0.944095,63044.0,63039.0,0.0631]
[1721052423779,0.930095,63044.0,63039.0,0.0631]
[1721052424158,0.916095,63044.0,63039.0,0.0631]
[1721052424717,0.181619,63044.0,63039.0,0.0631]
[1721052424863,0.498857,63044.0,63039.0,0.0631]
[1721052425268,0.830095,63044.0,63039.0,0.0631]
[1721052425657,0.844095,63044.0,63039.0,0.0631]
[1721052426058,0.830095,63044.0,63039.0,0.0631]
[1721052426251,0.81885686,63044.0,63039.0,0.0631]
[1721052426452,0.82885686,63044.0,63039.0,0.0631]
[1721052426636,0.82585686,63044.0,63039.0,0.0631]
[1721052427060,0.82785686,63044.0,63039.0,0.0631]
[1721052427278,0.51061886,63044.0,63039.0,0.0631]
[1721052427468,0.20138086,63044.0,63039.0,0.0631]
[1721052427677,0.20138086,63044.0,63043.0,0.151063]
[1721052427885,0.04276186,63044.0,63043.0,0.151063]